fUST/lending_fUST_20250228
["ID","MTS","AMOUNT","RATE_DAILY","PERIOD"]
[354815234,1740714642216,-315.0,0.00099,120]
[354815235,1740714642225,-315.0,0.00099,120]
[354815236,1740714642235,-315.0,0.00099,120]
[354815237,1740714642244,-315.0,0.00099,120]
[354815238,1740714642254,-315.0,0.00099,120]
[354815239,1740714642263,-278.5631595,0.00099,120]
[354815240,1740714642273,-2500.0,0.00099008,7]
[354815241,1740714642283,-249.22,0.00099008,14]
[354815242,1740714642293,-851.44,0.000993,120]
[354815243,1740714642304,-150.0,0.00099558,2]
[354815244,1740714642313,-239.81,0.001,60]
[354815245,1740714642324,-222.22,0.001,60]
[354815246,1740714642333,-1181.57,0.001,60]
[354815247,1740714642344,-780.083328,0.001,30]
[354815248,1740714642353,-167.0,0.00100131,120]
[354815249,1740714642362,-666.0,0.00100383,120]
[354815250,1740714642371,-810.77,0.001015,14]
[354815251,1740714642380,-3697.16,0.0010435,120]
[354815252,1740714642389,-2192.05,0.0010435,120]
[354815253,1740714642399,-1000.0,0.0010435,2]
[354815254,1740714642409,-850.23,0.0010435,120]
[354815255,1740714642419,-778.26,0.0010435,120]
[354815256,1740714642428,-999.81,0.0010435,120]
[354815257,1740714642438,-500.0,0.0010435,120]
[354815258,1740714642449,-500.0,0.0010435,120]
[354815259,1740714642458,-1194.28,0.0010435,120]
[354815261,1740714642468,-500.0,0.0010435,21]
[354815262,1740714642477,-3314.2,0.0010435,120]
[354815263,1740714642486,-568.51,0.0010435,120]
[354815264,1740714642495,-503.18463434,0.00104351,120]
[354815266,1740714642504,-500.0,0.00104351,120]
[354815267,1740714642514,-500.0,0.00104351,120]
[354815270,1740714642524,-500.0,0.00104351,120]
[354815271,1740714642534,-500.0,0.00104351,120]
[354815272,1740714642543,-500.0,0.00104351,120]
[354815278,1740714642617,-814.72,0.00104351,120]
[354815279,1740714642627,-500.0,0.00104351,120]
[354815280,1740714642637,-500.0,0.00104351,120]
[354815281,1740714642647,-937.14,0.00104351,120]
[354815282,1740714642656,-500.0,0.00104351,120]
[354815283,1740714642665,-406.91193258,0.00104351,120]
[354815284,1740714642675,-500.0,0.00104351,120]
[354815285,1740714642684,-500.0,0.00104351,120]
[354815286,1740714642695,-501.77,0.00104351,120]
[354815287,1740714642705,-500.0,0.00104351,120]
[354815288,1740714642715,-958.6,0.00104351,120]
[354815289,1740714642724,-500.0,0.00104351,120]
[354815290,1740714642734,-667.96,0.00104351,120]
[354815291,1740714642743,-500.0,0.00104351,120]
[354815292,1740714642753,-500.0,0.00104351,120]
[354815293,1740714642763,-500.0,0.00104351,120]
[354815294,1740714642773,-500.0,0.00104351,120]
[354815295,1740714642783,-719.94,0.00104351,120]
[354815296,1740714642792,-500.0,0.00104351,120]
[354815297,1740714642802,-500.0,0.00104351,120]
[354815298,1740714642811,-713.99,0.00104351,120]
[354815299,1740714642820,-814.71,0.00104351,120]
[354815300,1740714642830,-500.0,0.00104351,120]
[354815301,1740714642839,-952.78,0.00104351,120]
[354815302,1740714642850,-710.07,0.00104351,120]
[354815303,1740714642863,-500.0,0.00104351,120]
[354815304,1740714642872,-500.0,0.00104351,120]
[354815305,1740714642882,-500.0,0.00104351,120]
[354815306,1740714642891,-1347.28,0.00104351,120]
[354815307,1740714642900,-382.00034945,0.00104351,120]
[354815308,1740714642910,-500.0,0.00104351,120]
[354815309,1740714642919,-500.0,0.00104351,120]
[354815310,1740714642928,-615.26,0.00104351,120]
[354815311,1740714642940,-500.0,0.00104351,120]
[354815312,1740714642953,-500.0,0.00104351,120]
[354815313,1740714642963,-598.64,0.00104351,120]
[354815314,1740714642972,-559.23,0.00104351,120]
[354815315,1740714642981,-500.0,0.00104351,120]
[354815316,1740714642990,-509.46291906,0.00104351,120]
[354815317,1740714642999,-500.0,0.00104351,120]
[354815318,1740714643008,-500.0,0.00104351,120]
[354815319,1740714643018,-557.08,0.00104351,120]
[354815320,1740714643027,-500.0,0.00104351,120]
[354815321,1740714643037,-794.93,0.00104351,120]
[354815322,1740714643046,-500.0,0.00104351,120]
[354815323,1740714643055,-500.0,0.00104351,120]
[354815324,1740714643064,-500.0,0.00104351,120]
[354815325,1740714643073,-500.0,0.00104351,120]
[354815326,1740714643084,-500.0,0.00104351,120]
[354815327,1740714643093,-500.0,0.00104351,120]
[354815328,1740714643102,-1280.1,0.00104351,120]
[354815329,1740714643112,-500.0,0.00104351,120]
[354815330,1740714643121,-500.0,0.00104351,120]
[354815331,1740714643131,-1157.93,0.00104351,120]
[354815332,1740714643140,-500.0,0.00104351,120]
[354815333,1740714643149,-500.0,0.00104351,120]
[354815334,1740714643159,-500.0,0.00104351,120]
[354815335,1740714643168,-500.0,0.00104351,120]
[354815336,1740714643177,-604.44,0.00104351,120]
[354815337,1740714643187,-500.0,0.00104351,120]
[354815338,1740714643196,-500.0,0.00104351,120]
[354815339,1740714643206,-820.88,0.00104351,120]
[354815340,1740714643216,-5534.98,0.00104351,120]
[354815341,1740714643226,-500.0,0.00104351,120]
[354815342,1740714643236,-500.0,0.00104351,120]
[354815343,1740714643246,-500.0,0.00104351,120]
[354815344,1740714643255,-702.83,0.00104351,120]
[354815345,1740714643265,-500.0,0.00104351,120]
[354815346,1740714643275,-500.0,0.00104351,120]
[354815347,1740714643284,-500.0,0.00104351,120]
[354815348,1740714643293,-658.92,0.00104351,120]
[354815349,1740714643303,-500.0,0.00104351,120]
[354815350,1740714643312,-500.0,0.00104351,120]
[354815351,1740714643322,-13649.77,0.00104351,7]
[354815352,1740714643331,-169.40339004,0.00104351,120]
[354815353,1740714643340,-500.0,0.00104351,120]
[354815354,1740714643350,-500.0,0.00104351,120]
[354815355,1740714643359,-2298.66,0.00104351,120]
[354815356,1740714643368,-760.27,0.00104351,120]
[354815357,1740714643378,-500.0,0.00104351,120]
[354815358,1740714643387,-500.0,0.00104351,120]
[354815359,1740714643396,-500.0,0.00104351,120]
[354815360,1740714643406,-500.0,0.00104351,120]
[354815362,1740714643415,-500.0,0.00104351,120]
[354815363,1740714643424,-500.0,0.00104351,120]
[354815364,1740714643433,-907.46,0.00104351,120]
[354815366,1740714643443,-500.0,0.00104351,120]
[354815367,1740714643454,-597.64,0.00104351,120]
[354815368,1740714643463,-200.0,0.00104351,7]
[354815369,1740714643472,-2903.54,0.00104351,120]
[354815370,1740714643481,-500.0,0.00104351,120]
[354815371,1740714643491,-9266.4,0.00104351,120]
[354815372,1740714643500,-500.0,0.00104351,120]
[354815373,1740714643509,-561.66413755,0.00104351,120]
[354815374,1740714643518,-500.0,0.00104351,120]
[354815375,1740714643528,-500.0,0.00104351,120]
[354815376,1740714643537,-500.0,0.00104351,120]
[354815377,1740714643546,-4824.43,0.00104351,120]
[354815378,1740714643556,-500.0,0.00104351,120]
[354815379,1740714643566,-1335.37,0.00104351,120]
[354815380,1740714643575,-718.0,0.00104351,120]
[354815381,1740714643584,-500.0,0.00104351,120]
[354815382,1740714643593,-1082.86,0.00104351,120]
[354815383,1740714643603,-500.0,0.00104351,120]
[354815384,1740714643612,-500.0,0.00104351,120]
[354815385,1740714643684,-991.55,0.00104351,120]
[354815386,1740714643693,-500.0,0.00104351,120]
[354815387,1740714643704,-500.0,0.00104351,120]
[354815388,1740714643713,-500.0,0.00104351,30]
[354815389,1740714643723,-500.0,0.00104351,120]
[354815390,1740714643732,-500.0,0.00104351,120]
[354815391,1740714643742,-310.83635084,0.00104351,45]
[354815392,1740714643751,-500.0,0.00104351,120]
[354815393,1740714643761,-500.0,0.00104351,120]
[354815394,1740714643770,-500.0,0.00104351,120]
[354815395,1740714643779,-559.31,0.00104351,120]
[354815396,1740714643789,-5756.36,0.00104351,120]
[354815397,1740714643799,-500.0,0.00104351,120]
[354815398,1740714643808,-500.0,0.00104351,120]
[354815399,1740714643817,-500.0,0.00104351,120]
[354815400,1740714643827,-500.0,0.00104351,120]
[354815401,1740714643836,-500.0,0.00104351,120]
[354815402,1740714643848,-2151.17,0.00104351,120]
[354815403,1740714643857,-500.0,0.00104351,120]
[354815404,1740714643867,-500.0,0.00104351,120]
[354815405,1740714643876,-500.0,0.00104351,120]
[354815406,1740714643886,-500.0,0.00104351,120]
[354815407,1740714643895,-706.58,0.00104351,120]
[354815408,1740714643904,-500.0,0.00104351,120]
[354815409,1740714643913,-628.40446825,0.00104351,120]
[354815410,1740714643923,-500.0,0.00104351,120]
[354815411,1740714643935,-299.47811881,0.00104351,120]
[354815412,1740714643944,-500.0,0.00104351,120]
[354815413,1740714643955,-500.0,0.00104351,120]
[354815414,1740714643964,-500.0,0.00104351,120]
[354815415,1740714643975,-3902.13,0.00104351,120]
[354815416,1740714643985,-500.0,0.00104351,120]
[354815417,1740714643995,-500.0,0.00104351,120]
[354815418,1740714644004,-500.0,0.00104351,120]
[354815419,1740714644013,-875.93,0.00104351,120]
[354815420,1740714644023,-583.35,0.00104351,120]
[354815421,1740714644032,-500.0,0.00104351,120]
[354815422,1740714644042,-500.0,0.00104351,120]
[354815423,1740714644051,-500.0,0.00104351,120]
[354815424,1740714644061,-500.0,0.00104351,120]
[354815425,1740714644070,-500.0,0.00104351,120]
[354815426,1740714644080,-2508.91,0.00104351,120]
[354815427,1740714644089,-602.01,0.00104351,120]
[354815428,1740714644098,-9170.72,0.00104351,120]
[354815429,1740714644107,-500.0,0.00104351,120]
[354815430,1740714644118,-77991.08,0.00104351,7]
[354815431,1740714644127,-502.01802636,0.00104351,120]
[354815432,1740714644137,-500.0,0.00104351,120]
[354815433,1740714644155,-625.01,0.00104351,120]
[354815434,1740714644173,-500.0,0.00104351,120]
[354815435,1740714644192,-527.99,0.00104351,120]
[354815436,1740714644211,-677.29,0.00104351,120]
[354815437,1740714644231,-500.0,0.00104351,120]
[354815438,1740714644248,-1965.73,0.00104351,120]
[354815439,1740714644266,-1394.69,0.00104351,120]
[354815440,1740714644280,-500.0,0.00104351,120]
[354815441,1740714644297,-571.96345166,0.00104351,120]
[354815442,1740714644315,-500.0,0.00104351,120]
[354815443,1740714644335,-500.0,0.00104351,120]
[354815444,1740714644350,-500.0,0.00104351,120]
[354815445,1740714644365,-500.0,0.00104351,120]
[354815446,1740714644382,-500.0,0.00104351,120]
[354815447,1740714644398,-647.17,0.00104351,120]
[354815448,1740714644412,-2544.36,0.00104351,120]
[354815449,1740714644426,-622.43,0.00104351,120]
[354815450,1740714644440,-500.0,0.00104351,120]
[354815451,1740714644457,-500.0,0.00104351,120]
[354815452,1740714644471,-250.51698514,0.00104351,120]
[354815453,1740714644486,-500.0,0.00104351,120]
[354815454,1740714644500,-500.0,0.00104351,120]
[354815455,1740714644515,-500.0,0.00104351,120]
[354815456,1740714644528,-500.0,0.00104351,120]
[354815457,1740714644542,-500.0,0.00104351,120]
[354815458,1740714644557,-1215.84,0.00104351,120]
[354815459,1740714644571,-500.0,0.00104351,120]
[354815460,1740714644585,-500.0,0.00104351,120]
[354815461,1740714644599,-500.0,0.00104351,120]
[354815462,1740714644613,-500.0,0.00104351,120]
[354815463,1740714644627,-982.74,0.00104351,120]
[354815464,1740714644642,-500.0,0.00104351,120]
[354815465,1740714644656,-1000.0,0.00104351,120]
[354815466,1740714644671,-500.0,0.00104351,120]
[354815467,1740714644685,-505.89310448,0.00104351,120]
[354815468,1740714644700,-572.33,0.00104351,120]
[354815469,1740714644716,-509.41478684,0.00104351,120]
[354815470,1740714644731,-500.0,0.00104351,120]
[354815471,1740714644746,-500.0,0.00104452,120]
[354815472,1740714644761,-500.0,0.00104452,120]
[354815473,1740714644775,-500.0,0.00104452,120]
[354815474,1740714644787,-500.0,0.00104452,120]
[354815475,1740714644797,-500.0,0.00104452,120]
[354815476,1740714644806,-500.0,0.00104452,120]
[354815477,1740714644816,-250.0,0.00104452,120]
[354815478,1740714644826,-500.0,0.00104452,120]
[354815479,1740714644835,-500.0,0.00104452,120]
[354815480,1740714644844,-500.0,0.00104452,120]
[354815481,1740714644976,-500.0,0.00104452,120]
[354815482,1740714644999,-500.0,0.00104452,120]
[354815483,1740714645010,-500.0,0.00104452,120]
[354815484,1740714645020,-500.0,0.00104452,120]
[354815485,1740714645031,-500.0,0.00104452,120]
[354815486,1740714645041,-500.0,0.00104452,120]
[354815487,1740714645050,-500.0,0.00104452,120]
[354815488,1740714645059,-500.0,0.00104452,120]
[354815489,1740714645069,-500.0,0.00104452,120]
[354815490,1740714645079,-500.0,0.00104452,120]
[354815491,1740714645088,-500.0,0.00104452,120]
[354815492,1740714645098,-500.0,0.00104452,120]
[354815493,1740714645107,-500.0,0.00104452,120]
[354815494,1740714645116,-501.14306455,0.00104452,120]
[354815495,1740714645127,-500.0,0.00104452,120]
[354815496,1740714645136,-272.2903099,0.00104452,120]
[354815497,1740714645146,-504.67246536,0.00104452,120]
[354815498,1740714645155,-500.0,0.00104452,120]
[354815499,1740714645165,-500.0,0.00104452,120]
[354815500,1740714645174,-500.0,0.00104452,120]
[354815501,1740714645183,-500.0,0.00104452,120]
[354815502,1740714645192,-500.0,0.00104452,120]
[354815504,1740714645204,-500.0,0.00104452,120]
[354815506,1740714645214,-266.50050266,0.00104452,120]
[354815507,1740714645223,-500.0,0.00104452,120]
[354815508,1740714645232,-500.0,0.00104452,120]
[354815509,1740714645242,-500.0,0.00104452,120]
[354815511,1740714645251,-500.0,0.00104452,120]
[354815512,1740714645261,-500.0,0.00104452,120]
[354815513,1740714645270,-500.0,0.00104452,120]
[354815514,1740714645280,-501.22382175,0.00104452,120]
[354815515,1740714645290,-500.0,0.00104452,120]
[354815516,1740714645299,-500.0,0.00104452,120]
[354815517,1740714645309,-606.25807251,0.00104452,120]
[354815518,1740714645319,-587.35390569,0.00104452,120]
[354815519,1740714645328,-500.0,0.00104452,120]
[354815520,1740714645338,-500.0,0.00104452,120]
[354815521,1740714645347,-500.0,0.00104452,120]
[354815522,1740714645357,-500.0,0.00104452,120]
[354815523,1740714645367,-240.29469324,0.00104452,120]
[354815524,1740714645376,-500.0,0.00104452,120]
[354815525,1740714645386,-500.0,0.00104452,120]
[354815526,1740714645395,-500.0,0.00104452,120]
[354815527,1740714645405,-500.0,0.00104452,120]
[354815528,1740714645414,-500.0,0.00104452,120]
[354815529,1740714645425,-500.0,0.00104452,120]
[354815530,1740714645434,-500.0,0.00104452,120]
[354815531,1740714645444,-500.0,0.00104452,120]
[354815532,1740714645454,-500.0,0.00104452,120]
[354815533,1740714645463,-500.0,0.00104452,120]
[354815534,1740714645472,-500.0,0.00104452,120]
[354815536,1740714645482,-555.77,0.00104452,120]
[354815537,1740714645491,-500.0,0.00104452,120]
[354815538,1740714645500,-500.0,0.00104452,120]
[354815539,1740714645510,-500.0,0.00104452,120]
[354815540,1740714645520,-500.0,0.00104452,120]
[354815541,1740714645529,-500.0,0.00104452,120]
[354815542,1740714645538,-500.0,0.00104452,120]
[354815543,1740714645548,-336.2881086,0.00104452,120]
[354815544,1740714645557,-693.81,0.00104452,120]
[354815545,1740714645567,-500.0,0.00104452,120]
[354815546,1740714645576,-503.5439522,0.00104452,120]
[354815547,1740714645586,-500.0,0.00104452,120]
[354815548,1740714645595,-506.28266742,0.00104452,120]
[354815549,1740714645604,-500.0,0.00104452,120]
[354815550,1740714645614,-500.0,0.00104452,120]
[354815551,1740714645623,-444.87985504,0.00104452,120]
[354815552,1740714645633,-500.0,0.00104452,120]
[354815553,1740714645642,-262.27740963,0.00104452,120]
[354815554,1740714645652,-500.0,0.00104452,120]
[354815555,1740714645662,-580.15,0.00104452,120]
[354815556,1740714645671,-500.0,0.00104452,120]
[354815558,1740714645680,-500.0,0.00104452,120]
[354815559,1740714645689,-500.0,0.00104452,120]
[354815560,1740714645700,-500.0,0.00104452,120]
[354815561,1740714645710,-500.0,0.00104452,120]
[354815562,1740714645719,-500.0,0.00104452,120]
[354815563,1740714645728,-500.0,0.00104452,120]
[354815564,1740714645738,-588.55304267,0.00104452,120]
[354815565,1740714645747,-500.0,0.00104452,120]
[354815567,1740714645756,-500.0,0.00104452,120]
[354815568,1740714645766,-503.39136805,0.00104452,120]
[354815569,1740714645775,-527.86,0.00104452,120]
[354815570,1740714645785,-500.0,0.00104452,120]
[354815571,1740714645794,-500.0,0.00104452,120]
[354815572,1740714645803,-500.0,0.00104452,120]
[354815573,1740714645812,-500.0,0.00104452,120]
[354815575,1740714645821,-500.0,0.00104452,120]
[354815576,1740714645831,-506.26038943,0.00104452,120]
[354815577,1740714645841,-500.0,0.00104452,120]
[354815578,1740714645859,-500.0,0.00104452,120]
[354815579,1740714645869,-500.0,0.00104452,120]
[354815580,1740714645878,-500.0,0.00104452,120]
[354815581,1740714645888,-500.0,0.00104452,120]
[354815582,1740714645898,-1497.1,0.00104452,120]
[354815583,1740714645908,-500.0,0.00104452,120]
[354815584,1740714645917,-513.02,0.00104452,120]
[354815585,1740714645927,-500.0,0.00104452,120]
[354815586,1740714645937,-500.0,0.00104452,120]
[354815587,1740714645947,-500.0,0.00104452,120]
[354815588,1740714645958,-1195.75,0.00104452,120]
[354815589,1740714645968,-500.0,0.00104452,120]
[354815590,1740714645977,-500.0,0.00104452,120]
[354815592,1740714645986,-1098.3,0.00104452,120]
[354815593,1740714645996,-500.0,0.00104452,120]
[354815594,1740714646006,-500.0,0.00104452,120]
[354815595,1740714646015,-500.0,0.00104452,120]
[354815596,1740714646025,-500.0,0.00104452,120]
[354815597,1740714646035,-500.0,0.00104452,120]
[354815598,1740714646045,-537.87,0.00104452,120]
[354815599,1740714646054,-500.0,0.00104452,120]
[354815600,1740714646064,-500.0,0.00104452,120]
[354815601,1740714646073,-500.0,0.00104452,120]
[354815602,1740714646083,-500.0,0.00104452,120]
[354815603,1740714646092,-500.0,0.00104452,120]
[354815604,1740714646102,-500.0,0.00104452,120]
[354815605,1740714646112,-500.0,0.00104452,120]
[354815606,1740714646121,-500.0,0.00104452,120]
[354815607,1740714646131,-475.59201113,0.00104452,120]
[354815608,1740714646140,-796.92,0.00104452,120]
[354815609,1740714646150,-600.04531732,0.00104452,120]
[354815610,1740714646159,-1364.8,0.00104452,120]
[354815611,1740714646169,-500.0,0.00104452,120]
[354815612,1740714646179,-500.0,0.00104452,120]
[354815613,1740714646188,-500.0,0.00104452,120]
[354815614,1740714646198,-500.0,0.00104452,120]
[354815615,1740714646210,-500.0,0.00104452,120]
[354815616,1740714646220,-500.0,0.00104452,120]
[354815617,1740714646230,-500.0,0.00104452,120]
[354815618,1740714646240,-500.0,0.00104452,2]
[354815619,1740714646250,-500.0,0.00104452,120]
[354815620,1740714646260,-500.0,0.00104452,120]
[354815621,1740714646270,-500.0,0.00104452,120]
[354815622,1740714646280,-500.0,0.00104452,120]
[354815623,1740714646290,-500.0,0.00104452,120]
[354815624,1740714646300,-500.0,0.00104452,120]
[354815625,1740714646310,-500.0,0.00104452,120]
[354815626,1740714646320,-500.0,0.00104452,120]
[354815627,1740714646330,-500.0,0.00104452,120]
[354815628,1740714646340,-500.0,0.00104452,120]
[354815629,1740714646350,-500.0,0.00104452,120]
[354815630,1740714646360,-500.0,0.00104452,120]
[354815631,1740714646370,-519.05,0.00104452,120]
[354815632,1740714646379,-500.0,0.00104452,120]
[354815633,1740714646389,-2066.9,0.00104452,15]
[354815634,1740714646399,-500.0,0.00104452,120]
[354815635,1740714646409,-500.04126669,0.00104452,120]
[354815636,1740714646418,-500.0,0.00104452,120]
[354815637,1740714646427,-500.0,0.00104452,120]
[354815638,1740714646437,-500.0,0.00104452,120]
[354815639,1740714646446,-500.0,0.00104452,120]
[354815640,1740714646459,-500.0,0.00104452,120]
[354815641,1740714646469,-500.0,0.00104452,120]
[354815642,1740714646478,-500.0,0.00104452,120]
[354815643,1740714646487,-500.0,0.00104452,120]
[354815644,1740714646496,-500.0,0.00104452,120]
[354815645,1740714646506,-500.0,0.00104452,120]
[354815646,1740714646515,-500.0,0.00104452,120]
[354815647,1740714646525,-553.82,0.00104452,120]
[354815648,1740714646534,-500.0,0.00104452,120]
[354815649,1740714646543,-574.15,0.00104452,120]
[354815650,1740714646552,-636.28,0.00104452,120]
[354815651,1740714646561,-500.0,0.00104452,120]
[354815652,1740714646571,-500.0,0.00104452,120]
[354815653,1740714646580,-500.0,0.00104452,120]
[354815654,1740714646589,-500.0,0.00104452,120]
[354815655,1740714646599,-632.43,0.00104452,120]
[354815656,1740714646608,-500.0,0.00104452,120]
[354815657,1740714646617,-500.0,0.00104452,120]
[354815658,1740714646627,-500.0,0.00104452,120]
[354815659,1740714646636,-1000.0,0.00104452,60]
[354815660,1740714646646,-500.0,0.00104452,120]
[354815661,1740714646656,-500.0,0.00104452,120]
[354815662,1740714646665,-949.38,0.00104452,120]
[354815663,1740714646674,-500.0,0.00104452,120]
[354815664,1740714646684,-500.0,0.00104452,120]
[354815665,1740714646693,-500.0,0.00104452,120]
[354815666,1740714646702,-500.0,0.00104452,120]
[354815667,1740714646711,-1271.26,0.00107,60]
[354815668,1740714646721,-2410.30656268,0.00109,30]
[354815669,1740714646730,-500.0,0.00109589,120]
[354815670,1740714646739,-3697.16,0.0010983,120]
[354815671,1740714646749,-165.0,0.00110144,120]
[354815672,1740714646758,-666.0,0.00111013,120]
[354815673,1740714646767,-500.0,0.00111031,120]
[354815674,1740714646776,-500.0,0.00112473,120]
[354815675,1740714646786,-500.0,0.00113915,120]
[354815676,1740714646795,-54359.86,0.00114,60]
[354815677,1740714646804,-3697.16,0.00115309,120]
[354815678,1740714646813,-500.0,0.00115357,120]
[354815679,1740714646898,-2325.54226947,0.00116435,7]
[354815680,1740714646913,-500.0,0.00116799,120]
[354815681,1740714646924,-500.0,0.00118241,120]
[354815682,1740714646936,-500.0,0.00119683,120]
[354815683,1740714646946,-165.0,0.00120157,120]
[354815684,1740714646957,-3697.16,0.00120789,120]
[354815685,1740714646966,-500.0,0.00121125,120]
[354815686,1740714646976,-666.0,0.00121643,120]
[354815687,1740714646985,-500.0,0.00122567,120]
[354815688,1740714646994,-239.81,0.00123,60]
[354815689,1740714647004,-222.22,0.00123,60]
[354815690,1740714647013,-1181.57,0.00123,60]
[354815691,1740714647023,-500.0,0.00124009,120]
[354815692,1740714647032,-500.0,0.00125451,120]
[354815693,1740714647042,-3697.16,0.00126268,120]
[354815694,1740714647051,-500.0,0.00126893,120]
[354815695,1740714647061,-500.0,0.00128335,120]
[354815696,1740714647070,-3314.2,0.00129008,120]
[354815697,1740714647079,-568.51,0.00129008,120]
[354815698,1740714647088,-500.0,0.00129009,120]
[354815699,1740714647097,-207.71470569,0.00129009,120]
[354815700,1740714647107,-500.0,0.00129009,120]
[354815701,1740714647116,-572.33,0.00129009,120]
[354815702,1740714647125,-500.0,0.00129009,120]
[354815703,1740714647135,-500.0,0.00129777,120]
[354815704,1740714647144,-1271.26,0.0013,60]
[354815705,1740714647155,-500.0,0.00131219,120]
[354815706,1740714647164,-3697.16,0.00131747,120]
[354815707,1740714647173,-666.0,0.00132273,120]
[354815708,1740714647183,-500.0,0.00132661,120]
[354815709,1740714647192,-500.0,0.00134103,120]
[354815710,1740714647203,-500.0,0.00135545,120]
[354815711,1740714647212,-206.016792,0.00136986,120]
[354815712,1740714647221,-500.0,0.00136987,120]
[354815713,1740714647232,-151.0,0.00136987,120]
[354815714,1740714647242,-54359.86,0.00137,60]
[354815715,1740714647251,-3697.16,0.00137227,120]
[354815716,1740714647260,-3697.16,0.00142706,120]
[354815717,1740714647269,-666.0,0.00142904,120]
[354815718,1740714647278,-206.016792,0.00144196,120]
[354815719,1740714647288,-3697.16,0.00148186,120]
[354815720,1740714647297,-206.016792,0.00151406,120]
[354815721,1740714647307,-666.0,0.00153534,120]
[354815722,1740714647317,-3697.16,0.00153665,120]
[354815723,1740714647326,-2192.05,0.00153665,120]
[354815724,1740714647335,-1000.0,0.00153665,2]
[354815725,1740714647344,-850.23,0.00153665,120]
[354815726,1740714647354,-778.26,0.00153665,120]
[354815727,1740714647364,-999.81,0.00153665,120]
[354815728,1740714647373,-500.0,0.00153665,120]
[354815729,1740714647383,-500.0,0.00153665,120]
[354815730,1740714647392,-1194.28,0.00153665,120]
[354815731,1740714647403,-500.0,0.00153665,21]
[354815732,1740714647412,-3314.2,0.00153665,120]
[354815733,1740714647422,-568.51,0.00153665,120]
[354815734,1740714647431,-500.0,0.00153666,120]
[354815735,1740714647441,-500.0,0.00153666,120]
[354815736,1740714647453,-500.0,0.00153666,120]
[354815737,1740714647462,-500.0,0.00153666,120]
[354815738,1740714647472,-500.0,0.00153666,120]
[354815739,1740714647481,-814.72,0.00153666,120]
[354815740,1740714647491,-500.0,0.00153666,120]
[354815741,1740714647500,-500.0,0.00153666,120]
[354815742,1740714647509,-937.14,0.00153666,120]
[354815743,1740714647518,-500.0,0.00153666,120]
[354815744,1740714647528,-500.0,0.00153666,120]
[354815745,1740714647537,-500.0,0.00153666,120]
[354815746,1740714647547,-501.77,0.00153666,120]
[354815747,1740714647556,-500.0,0.00153666,120]
[354815748,1740714647566,-958.6,0.00153666,120]
[354815749,1740714647575,-667.96,0.00153666,120]
[354815750,1740714647584,-500.0,0.00153666,120]
[354815751,1740714647595,-500.0,0.00153666,120]
[354815752,1740714647606,-500.0,0.00153666,120]